bitfinex/quotes_BTCUSD_20241111
["timestamp","ask_amount","ask_price","bid_price","bid_amount"]
[1731311698848,0.13094221,81098.0,81097.0,0.129152]
[1731311699267,0.13094221,81098.0,81097.0,0.126152]
[1731311699510,0.13094221,81098.0,81097.0,0.129152]
[1731311701908,0.13094221,81098.0,81097.0,0.127152]
[1731311702311,0.13094221,81098.0,81097.0,0.124152]
[1731311702521,0.13094221,81098.0,81097.0,0.127152]
[1731311703330,0.13094221,81098.0,81097.0,0.129152]
[1731311703561,0.16781391,81098.0,81097.0,0.129152]
[1731311703743,0.13094221,81098.0,81097.0,0.129152]
[1731311704317,0.16781391,81098.0,81097.0,0.129152]
[1731311704783,0.16781391,81098.0,81097.0,0.005843]
[1731311705375,0.13094221,81098.0,81097.0,0.005843]
[1731311707184,0.13094221,81098.0,81097.0,0.129152]
[1731311707583,0.12594221,81098.0,81097.0,0.129152]
[1731311707773,0.12594221,81098.0,81097.0,0.210552]
[1731311707968,0.12594221,81098.0,81097.0,0.259052]
[1731311708380,0.03688376,81099.0,81098.0,0.123307]
[1731311708603,0.001686,81114.0,81098.0,0.38981182]
[1731311708604,0.03688376,81106.0,81098.0,0.38981182]
[1731311708805,0.03688376,81108.0,81105.0,0.14319982]
[1731311709084,0.05532564,81111.0,81107.0,0.246585]
[1731311709327,0.07545353,81114.0,81111.0,0.123287]
[1731311709328,0.03688254,81112.0,81111.0,0.123287]
[1731311709490,0.001686,81114.0,81113.0,0.123284]
[1731311710554,0.12762821,81114.0,81113.0,0.123284]
[1731311711118,0.12762821,81114.0,81113.0,0.125284]
[1731311712242,0.12762821,81114.0,81113.0,0.127284]
[1731311717648,0.001686,81114.0,81113.0,0.27048382]
[1731311717982,0.001686,81114.0,81113.0,0.34828382]
[1731311718130,0.12762821,81114.0,81113.0,0.205084]
[1731311718760,0.12762821,81114.0,81113.0,0.125284]
[1731311718969,0.12762821,81114.0,81111.0,0.123287]
[1731311719114,0.12762821,81114.0,81100.0,0.0754]
[1731311719115,0.005,81112.0,81100.0,0.0754]
[1731311719316,0.005,81108.0,81106.0,0.18504697]
[1731311719576,0.12594221,81107.0,81106.0,0.123295]
[1731311720163,0.001686,81114.0,81113.0,0.123284]
[1731311720362,0.12762821,81114.0,81113.0,0.39138382]
[1731311720774,0.12762821,81114.0,81113.0,0.248184]
[1731311721408,0.001686,81114.0,81113.0,0.39138382]
[1731311721848,0.001686,81114.0,81113.0,0.39338382]
[1731311722050,0.001686,81114.0,81113.0,0.39138382]
[1731311722583,0.000842,81122.0,81121.0,0.38967182]
[1731311724509,0.000842,81122.0,81121.0,0.37234713]
[1731311725372,0.000842,81122.0,81121.0,0.37334713]
[1731311725964,0.000842,81122.0,81121.0,0.37534713]
[1731311726731,0.000842,81122.0,81121.0,0.37234713]
[1731311727100,0.000842,81122.0,81121.0,0.37534713]
[1731311727227,0.000842,81122.0,81121.0,0.249472]
[1731311728239,0.000842,81122.0,81121.0,0.246472]
[1731311728441,0.000842,81122.0,81121.0,0.249472]
[1731311728846,0.000842,81122.0,81121.0,0.247472]
[1731311729043,0.000842,81122.0,81121.0,0.249472]
[1731311729479,0.000842,81122.0,81121.0,0.248472]
[1731311729854,0.000842,81122.0,81121.0,0.249472]
[1731311732063,0.000842,81122.0,81121.0,0.1262]
[1731311732359,0.000842,81122.0,81121.0,0.0797]
[1731311734155,0.000842,81122.0,81121.0,0.202972]
[1731311735313,0.000842,81122.0,81121.0,0.250372]
[1731311736498,0.000842,81122.0,81121.0,0.1271]
[1731311738008,0.000842,81122.0,81121.0,0.250372]
[1731311739393,0.000842,81122.0,81121.0,0.1271]
[1731311740530,0.000842,81122.0,81121.0,0.0797]
[1731311740726,0.12678421,81122.0,81121.0,0.003]
[1731311741486,0.12678421,81122.0,81121.0,0.002]
[1731311741696,0.12678421,81122.0,81121.0,0.0798]
[1731311741886,0.12678421,81122.0,81121.0,0.202072]
[1731311742097,0.000842,81122.0,81121.0,0.202072]
[1731311742299,0.000842,81122.0,81121.0,0.204072]
[1731311742933,0.000842,81122.0,81121.0,0.202072]
[1731311743406,0.12678421,81122.0,81121.0,0.0798]
[1731311743782,0.12678421,81122.0,81121.0,0.0808]
[1731311745250,0.000842,81122.0,81121.0,0.0808]
[1731311745659,0.000842,81122.0,81121.0,0.204072]
[1731311746202,0.000842,81122.0,81121.0,0.0808]
[1731311746767,0.000842,81122.0,81121.0,0.204072]
[1731311747890,0.000842,81122.0,81121.0,0.0808]
[1731311748656,0.000842,81122.0,81121.0,0.14288724]
[1731311749713,0.000842,81122.0,81121.0,0.13988724]
[1731311749912,0.000842,81122.0,81121.0,0.14288724]
[1731311750268,0.000842,81122.0,81121.0,0.14088724]
[1731311750495,0.000842,81122.0,81121.0,0.13988724]
[1731311750695,0.000842,81122.0,81121.0,0.14088724]
[1731311751541,0.000842,81122.0,81121.0,0.14288724]
[1731311757228,0.000842,81122.0,81121.0,0.14188724]
[1731311757649,0.03760972,81122.0,81121.0,0.14288724]
[1731311757848,0.03760972,81122.0,81121.0,0.14088724]
[1731311758027,0.03760972,81122.0,81121.0,0.14288724]
[1731311758912,0.03760972,81122.0,81121.0,0.13988724]
[1731311759189,0.03760972,81122.0,81121.0,0.14288724]
[1731311760835,0.000842,81122.0,81121.0,0.09481059]
[1731311761330,0.000842,81122.0,81121.0,0.21808259]
[1731311761684,0.000842,81122.0,81121.0,0.09481059]
[1731311762191,0.12678421,81122.0,81121.0,0.003]
[1731311762421,0.25005521,81122.0,81121.0,0.09481059]
[1731311763239,0.25005521,81122.0,81121.0,0.003]
[1731311763440,0.34476583,81122.0,81121.0,0.003]
[1731311763641,0.48083358,81122.0,81121.0,0.003]
[1731311763848,0.39312296,81122.0,81121.0,0.003]
[1731311764056,0.39312296,81122.0,81121.0,0.001]
[1731311764273,0.39312296,81122.0,81121.0,0.003]
[1731311764509,0.39312296,81122.0,81121.0,0.001]
[1731311764984,0.39312296,81122.0,81121.0,0.002]
[1731311765313,0.39312296,81122.0,81121.0,0.003]
[1731311765901,0.39112296,81122.0,81121.0,0.002]
[1731311766080,0.39112296,81122.0,81121.0,0.003]
[1731311767078,0.49488206,81122.0,81121.0,0.003]
[1731311767311,0.49988206,81122.0,81121.0,0.003]
[1731311768057,0.39812296,81122.0,81121.0,0.003]
[1731311768809,0.39612296,81122.0,81121.0,0.003]
[1731311769414,0.46979911,81122.0,81121.0,0.003]
[1731311770039,0.26285196,81122.0,81121.0,0.003]
[1731311770342,0.18203782,81122.0,81121.0,0.003]
[1731311770554,0.12678421,81122.0,81121.0,0.003]
[1731311770753,0.13178421,81122.0,81121.0,0.003]
[1731311771403,0.31031233,81122.0,81121.0,0.003]
[1731311771605,0.46472837,81122.0,81121.0,0.003]
[1731311771805,0.39105214,81122.0,81121.0,0.003]
[1731311772103,0.46473705,81122.0,81121.0,0.003]
[1731311773113,0.33646605,81122.0,81121.0,0.003]
[1731311773310,0.18204863,81122.0,81121.0,0.126272]
[1731311773565,0.12678421,81122.0,81121.0,0.126272]
[1731311774112,0.12678421,81122.0,81121.0,0.202772]
[1731311774879,0.12678421,81122.0,81121.0,0.201772]
[1731311775317,0.12678421,81122.0,81121.0,0.200772]
[1731311775522,0.12678421,81122.0,81121.0,0.202772]
[1731311775631,0.12678421,81122.0,81121.0,0.201772]
[1731311776039,0.12678421,81122.0,81121.0,0.202772]
[1731311776258,0.12678421,81122.0,81121.0,0.34266095]
[1731311777040,0.12678421,81122.0,81121.0,0.34739552]
[1731311780512,0.12678421,81122.0,81121.0,0.34266095]
[1731311782530,0.12678421,81122.0,81121.0,0.34265249]
[1731311783554,0.000842,81122.0,81121.0,0.34265249]
[1731311784337,0.000841,81131.0,81130.0,0.123258]
[1731311784562,0.000841,81131.0,81130.0,0.39323849]
[1731311785755,0.000841,81131.0,81130.0,0.39523849]
[1731311786534,0.000841,81131.0,81130.0,0.39623849]
[1731311786921,0.000841,81131.0,81130.0,0.39323849]
[1731311787122,0.000841,81131.0,81130.0,0.39523849]
[1731311787366,0.000841,81131.0,81130.0,0.39623849]
[1731311793065,0.000841,81131.0,81130.0,0.40098337]
[1731311797014,8e-05,81132.0,81130.0,0.33600586]
[1731311797223,0.25,81144.0,81143.0,0.123239]
[1731311797443,0.37594221,81144.0,81143.0,0.26311949]
[1731311798834,0.37594221,81144.0,81143.0,0.26411949]
[1731311799783,0.37594221,81144.0,81143.0,0.32631949]
[1731311800753,0.37594221,81144.0,81143.0,0.186439]
[1731311801549,0.37594221,81144.0,81143.0,0.0632]
[1731311801931,0.37594221,81144.0,81143.0,0.186439]
[1731311802918,0.37594221,81144.0,81143.0,0.185439]
[1731311807242,0.37594221,81144.0,81143.0,0.261839]
[1731311808389,0.37594221,81144.0,81143.0,0.262839]
[1731311809559,0.37594221,81144.0,81143.0,0.311339]
[1731311809777,0.37594221,81144.0,81143.0,0.312339]
[1731311810140,0.000698,81150.0,81143.0,0.32898049]
[1731311810385,0.000698,81150.0,81149.0,0.12323]
[1731311810583,0.000698,81150.0,81149.0,0.34581049]
[1731311812906,0.000698,81150.0,81149.0,0.20593]
[1731311813115,0.000698,81150.0,81149.0,0.20193]
[1731311813314,0.000698,81150.0,81149.0,0.20969915]
[1731311815703,0.000698,81150.0,81147.0,0.246466]
[1731311815897,0.000698,81150.0,81149.0,0.12323]
[1731311817329,0.000698,81150.0,81149.0,0.12523]
[1731311817731,0.000698,81150.0,81149.0,0.12623]
[1731311824357,0.000698,81150.0,81149.0,0.35917697]
[1731311824654,0.000698,81150.0,81149.0,0.17413]
[1731311824815,0.000698,81150.0,81149.0,0.1765943]
[1731311825015,0.000698,81150.0,81149.0,0.17413]
[1731311825252,0.000698,81150.0,81149.0,0.17213]
[1731311825805,0.000698,81150.0,81149.0,0.17459422]
[1731311826047,0.000698,81150.0,81149.0,0.17413]
[1731311826260,0.000698,81150.0,81149.0,0.1755942]
[1731311826474,0.000698,81150.0,81149.0,0.2516942]
[1731311826677,0.000698,81150.0,81149.0,0.2526942]
[1731311827052,0.000698,81150.0,81149.0,0.2746942]
[1731311827546,0.000698,81150.0,81149.0,0.56574117]
[1731311827762,0.000698,81150.0,81149.0,0.51794754]
[1731311828198,0.03677502,81180.0,81178.0,0.123186]
[1731311828405,0.000698,81184.0,81183.0,0.123178]
[1731311829233,0.000698,81184.0,81183.0,0.146178]
[1731311829506,0.000698,81184.0,81183.0,0.123178]
[1731311829847,0.000698,81184.0,81183.0,0.125178]
[1731311830047,0.000698,81184.0,81183.0,0.12990968]
[1731311830299,0.000698,81184.0,81183.0,0.13090968]
[1731311830877,0.000698,81184.0,81183.0,0.12990968]
[1731311831078,0.000698,81184.0,81183.0,0.13090968]
[1731311831278,0.000698,81184.0,81183.0,0.12890968]
[1731311831484,0.02295813,81205.0,81183.0,0.12890968]
[1731311831485,0.03672955,81211.0,81205.0,0.0694]
[1731311831687,0.18574497,81213.0,81212.0,0.123134]
[1731311831863,0.000698,81213.0,81212.0,0.123134]
[1731311832064,0.12664021,81213.0,81212.0,0.123134]
[1731311833507,0.12664021,81213.0,81212.0,0.124134]
[1731311833913,0.12664021,81213.0,81212.0,0.123134]
[1731311834319,0.12664021,81213.0,81212.0,0.125134]
[1731311834746,0.12664021,81213.0,81212.0,0.124134]
[1731311834942,0.12664021,81213.0,81212.0,0.125134]
[1731311835090,0.12664021,81213.0,81212.0,0.12986054]
[1731311835502,0.000698,81213.0,81212.0,0.12986054]
[1731311841393,0.000698,81213.0,81207.0,0.13971754]
[1731311841643,0.000698,81213.0,81212.0,0.123134]
[1731311843095,0.000698,81213.0,81212.0,0.124134]
[1731311843286,0.000698,81213.0,81212.0,0.125134]
[1731311843731,0.25095598,81233.0,81218.0,0.123125]
[1731311843732,0.123107,81230.0,81218.0,0.123125]
[1731311843931,0.12594221,81229.0,81218.0,0.123125]
[1731311844136,0.123112,81227.0,81218.0,0.123125]
[1731311844318,0.12594221,81226.0,81218.0,0.123125]
[1731311844509,0.12594221,81226.0,81220.0,0.18504697]
[1731311844713,0.03659674,81231.0,81224.0,0.123116]
[1731311844714,0.12594221,81225.0,81224.0,0.123116]
[1731311846341,0.12694221,81225.0,81224.0,0.123116]
[1731311847789,0.12878321,81225.0,81224.0,0.123116]
[1731311848342,0.002841,81225.0,81224.0,0.123116]
[1731311851007,0.001841,81225.0,81224.0,0.123116]
[1731311851207,0.000841,81225.0,81224.0,0.123116]
[1731311851419,0.000841,81225.0,81224.0,0.124116]
[1731311851614,0.010841,81225.0,81224.0,0.125116]
[1731311853208,0.13678321,81225.0,81224.0,0.125116]
[1731311853597,0.13678321,81225.0,81224.0,0.002]
[1731311853910,0.13678321,81225.0,81224.0,0.12165327]
[1731311854862,0.13678321,81225.0,81222.0,0.123119]
[1731311855062,0.12594221,81224.0,81222.0,0.123119]
[1731311855945,0.12594221,81224.0,81222.0,0.001]
[1731311856119,0.12594221,81224.0,81223.0,0.18504697]
[1731311856319,0.12594221,81224.0,81222.0,0.001]
[1731311856765,0.248717,81223.0,81222.0,0.001]
[1731311856965,0.32815921,81223.0,81222.0,0.001]
[1731311857519,0.20504221,81223.0,81215.0,0.18504697]
[1731311857763,0.03651332,81221.0,81215.0,0.18504697]
[1731311858081,0.03651332,81221.0,81210.0,0.005]
[1731311858082,0.123129,81216.0,81210.0,0.005]
[1731311858220,0.12594221,81215.0,81214.0,0.18504697]
[1731311858642,0.12594221,81215.0,81210.0,0.005]
[1731311858854,0.12594221,81215.0,81211.0,0.18504697]
[1731311859481,0.24907121,81215.0,81214.0,0.002]
[1731311859686,0.12594221,81215.0,81214.0,0.002]
[1731311860609,0.12594221,81215.0,81203.0,0.00583197]
[1731311860811,0.123133,81213.0,81203.0,0.246296]
[1731311861019,0.12594221,81212.0,81211.0,0.002]
[1731311861215,0.12594221,81212.0,81211.0,0.001]
[1731311861853,0.12594221,81212.0,81209.0,0.123138]
[1731311862109,0.12594221,81212.0,81211.0,0.001]
[1731311862110,0.06682086,81212.0,81211.0,0.001]
[1731311863884,0.18995486,81212.0,81211.0,0.001]
[1731311864085,0.06682086,81212.0,81211.0,0.001]
[1731311864348,0.22646818,81212.0,81211.0,0.001]
[1731311864763,0.22646818,81212.0,81211.0,0.002]
[1731311865375,0.18995486,81212.0,81211.0,0.002]
[1731311865999,0.06682086,81212.0,81211.0,0.002]
[1731311866200,0.18995486,81212.0,81211.0,0.002]
[1731311866402,0.06682086,81212.0,81211.0,0.002]
[1731311868276,0.12156339,81212.0,81211.0,0.002]
[1731311869403,0.06682086,81212.0,81211.0,0.002]
[1731311870200,0.06682086,81212.0,81211.0,0.125136]
[1731311870405,0.20225849,81212.0,81211.0,0.002]
[1731311870780,0.39838253,81212.0,81211.0,0.002]
[1731311871238,0.41663004,81212.0,81211.0,0.002]
[1731311871367,0.32539249,81212.0,81211.0,0.002]
[1731311871568,0.20225849,81212.0,81211.0,0.002]
[1731311872591,0.20225849,81212.0,81211.0,0.125136]
[1731311872717,0.13543763,81212.0,81211.0,0.130136]
[1731311872919,0.05510515,81213.0,81212.0,0.123134]
[1731311873121,0.2092448,81213.0,81211.0,0.008682]
[1731311873323,0.07353005,81213.0,81212.0,0.123134]
[1731311873520,0.13571418,81213.0,81212.0,0.123134]
[1731311874156,0.13571418,81213.0,81208.0,0.32868]
[1731311874377,0.22770662,81212.0,81210.0,0.246273]
[1731311874558,0.09199244,81213.0,81212.0,0.123134]
[1731311874760,0.22782373,81213.0,81212.0,0.123134]
[1731311874961,0.13583129,81213.0,81212.0,0.123134]
[1731311875503,0.22786762,81213.0,81212.0,0.128134]
[1731311875719,0.22786762,81213.0,81211.0,0.123135]
[1731311875720,0.35380983,81213.0,81211.0,0.123135]
[1731311875881,0.35381095,81212.0,81211.0,0.123135]
[1731311876088,0.4132327,81212.0,81211.0,0.123135]
[1731311876413,0.42473482,81212.0,81211.0,0.123135]
[1731311876818,0.33269737,81212.0,81211.0,0.123135]
[1731311876956,0.32119525,81212.0,81211.0,0.123135]
[1731311877164,0.32119525,81212.0,81211.0,0.124135]
[1731311877165,0.4132327,81212.0,81211.0,0.124135]
[1731311877369,0.32119525,81212.0,81211.0,0.124135]
[1731311877569,0.33269787,81212.0,81211.0,0.124135]
[1731311878373,0.33269787,81212.0,81211.0,0.125135]
[1731311879056,0.31008866,81212.0,81211.0,0.125135]
[1731311879193,0.3330965,81212.0,81211.0,0.125135]
[1731311879437,0.40674876,81212.0,81211.0,0.125135]
[1731311879835,0.3330965,81212.0,81211.0,0.125135]
[1731311880291,0.40674799,81212.0,81211.0,0.125135]
[1731311880779,0.40674799,81212.0,81211.0,0.002]
[1731311880984,0.40674997,81212.0,81211.0,0.002]
[1731311881403,0.3330965,81212.0,81211.0,0.002]
[1731311882296,0.19726521,81212.0,81211.0,0.002]
[1731311882479,0.52998933,81212.0,81211.0,0.002]
[1731311882687,0.33320186,81212.0,81211.0,0.002]
[1731311884166,0.19726521,81212.0,81211.0,0.002]
[1731311884376,0.33319723,81212.0,81211.0,0.002]
[1731311885001,0.33319723,81212.0,81211.0,0.003684]
[1731311885203,0.33319723,81212.0,81211.0,0.002684]
[1731311885412,0.33403923,81212.0,81211.0,0.003684]
[1731311886244,0.45717323,81212.0,81211.0,0.003684]
[1731311886658,0.45717323,81212.0,81211.0,0.002684]
[1731311886858,0.45717323,81212.0,81211.0,0.001684]
[1731311887043,0.45717323,81212.0,81211.0,0.002684]
[1731311887295,0.50587323,81212.0,81211.0,0.003684]
[1731311887507,0.50587323,81212.0,81211.0,0.002684]
[1731311887897,0.50587323,81212.0,81211.0,0.003684]
[1731311888299,0.50587323,81212.0,81211.0,0.002684]
[1731311888516,0.51487323,81212.0,81211.0,0.003684]
[1731311889401,0.65459077,81212.0,81211.0,0.003684]
[1731311889603,0.123151,81201.0,81200.0,0.001682]
[1731311889806,0.45634823,81201.0,81200.0,0.001682]
[1731311890028,0.54837807,81201.0,81200.0,0.001682]
[1731311890469,0.45634823,81201.0,81200.0,0.001682]
[1731311890924,0.45634823,81201.0,81200.0,0.002682]
[1731311891097,0.45634823,81201.0,81200.0,0.003682]
[1731311892157,0.53214823,81201.0,81200.0,0.003682]
[1731311892558,0.56939218,81201.0,81200.0,0.003682]
[1731311892789,0.50974823,81201.0,81200.0,0.002682]
[1731311893256,0.51074823,81201.0,81200.0,0.001682]
[1731311893460,0.57125239,81201.0,81200.0,0.001682]
[1731311893676,0.57025239,81201.0,81200.0,0.001682]
[1731311893851,0.630114,81201.0,81200.0,0.001682]
[1731311894026,0.59728085,81201.0,81200.0,0.001682]
[1731311894227,0.60128085,81201.0,81200.0,0.001682]
[1731311894429,0.48095631,81201.0,81200.0,0.001682]
[1731311894690,0.48081056,81201.0,81200.0,0.001682]
[1731311895304,0.43241056,81201.0,81200.0,0.001682]
[1731311895646,0.42740247,81201.0,81200.0,0.001682]
[1731311895851,0.43240247,81201.0,81200.0,0.001682]
[1731311898282,0.43239718,81201.0,81200.0,0.001682]
[1731311898684,0.42839718,81201.0,81200.0,0.001682]
[1731311898896,0.42939718,81201.0,81200.0,0.001682]
[1731311899097,0.42539718,81201.0,81200.0,0.001682]
[1731311899413,0.42739718,81201.0,81200.0,0.001682]
[1731311899879,0.42539718,81201.0,81200.0,0.001682]
[1731311900079,0.42439718,81201.0,81200.0,0.001682]
[1731311900243,0.42739718,81201.0,81200.0,0.001682]
[1731311900438,0.43039718,81201.0,81200.0,0.001682]
[1731311900990,0.44039718,81201.0,81200.0,0.001682]
[1731311902276,0.43739718,81201.0,81200.0,0.001682]
[1731311902483,0.44139718,81201.0,81200.0,0.001682]
[1731311903183,0.43839718,81201.0,81200.0,0.001682]
[1731311903399,0.44239718,81201.0,81200.0,0.001682]
[1731311904798,0.4423757,81201.0,81200.0,0.001682]
[1731311904968,0.41435498,81201.0,81200.0,0.001682]
[1731311905145,0.44233953,81201.0,81200.0,0.001682]
[1731311905349,0.55504416,81201.0,81200.0,0.001682]
[1731311905800,0.43189316,81201.0,81188.0,0.18504697]
[1731311906053,0.123169,81189.0,81188.0,0.18504697]
[1731311906254,0.14615355,81189.0,81188.0,0.18504697]
[1731311906501,0.03448153,81189.0,81188.0,0.18504697]
[1731311906875,0.03448153,81189.0,81184.0,0.123176]
[1731311907084,0.01149698,81189.0,81188.0,0.002]
[1731311907254,0.03448588,81189.0,81188.0,0.001]
[1731311907664,0.0229889,81189.0,81188.0,0.002]
[1731311907871,0.03448588,81189.0,81188.0,0.001]
[1731311908478,0.03448588,81189.0,81188.0,0.248054]
[1731311908679,0.0229889,81189.0,81188.0,0.248054]
[1731311909212,0.0229889,81189.0,81188.0,0.247054]
[1731311909349,0.0229889,81189.0,81188.0,0.248054]
[1731311909987,0.0229889,81189.0,81188.0,0.247054]
[1731311910203,0.0229889,81189.0,81188.0,0.248054]
[1731311910377,0.03448588,81189.0,81188.0,0.248054]
[1731311910585,0.03448588,81189.0,81188.0,0.247054]
[1731311910794,0.03448588,81189.0,81188.0,0.248054]
[1731311911400,0.03448588,81189.0,81188.0,0.123884]
[1731311911602,0.03448588,81189.0,81188.0,0.247054]
[1731311911849,0.03448588,81189.0,81188.0,0.248054]
[1731311912623,0.03448588,81189.0,81188.0,0.124884]
[1731311912822,0.03448588,81189.0,81188.0,0.248054]
[1731311915186,0.03448588,81189.0,81188.0,0.253054]
[1731311915735,0.0229889,81189.0,81188.0,0.253054]
[1731311915939,0.0229889,81189.0,81188.0,0.25777401]
[1731311916147,0.0229889,81189.0,81188.0,0.25677401]
[1731311916349,0.0229889,81189.0,81188.0,0.25877401]
[1731311916350,0.03450964,81189.0,81188.0,0.25877401]
[1731311916777,0.03450964,81189.0,81188.0,0.25677401]
[1731311916980,0.03450964,81189.0,81188.0,0.25777401]
[1731311917207,0.0229889,81189.0,81188.0,0.25977401]
[1731311917576,0.03677062,81200.0,81195.0,0.246317]
[1731311917787,0.1973783,81199.0,81189.0,0.002]
[1731311918097,0.07143609,81198.0,81197.0,0.123157]
[1731311918300,0.1973783,81198.0,81197.0,0.123157]
[1731311919990,0.1973783,81198.0,81196.0,0.123158]
[1731311920301,0.1973783,81197.0,81196.0,0.123158]
[1731311921483,0.1973783,81197.0,81196.0,0.124158]
[1731311922127,0.25253423,81197.0,81196.0,0.124158]
[1731311922495,0.25257256,81197.0,81196.0,0.124158]
[1731311922948,0.25257256,81197.0,81196.0,0.001]
[1731311923153,0.21570232,81197.0,81196.0,0.001]
[1731311923366,0.21570896,81197.0,81196.0,0.001]
[1731311926552,0.33331314,81197.0,81192.0,0.123163]
[1731311926763,0.03682305,81193.0,81192.0,0.123163]
[1731311926936,0.1082653,81193.0,81192.0,0.123163]
[1731311927596,0.19738446,81193.0,81188.0,0.122884]
[1731311927836,0.05523458,81194.0,81192.0,0.001]
[1731311928024,0.07144768,81193.0,81188.0,0.246053]
[1731311928253,0.07144768,81193.0,81189.0,0.30821597]
[1731311928254,0.03683119,81191.0,81189.0,0.30821597]
[1731311928450,0.03457146,81190.0,81189.0,0.30821597]
[1731311928682,0.07140265,81190.0,81189.0,0.123169]
[1731311929512,0.03457182,81190.0,81189.0,0.123169]
[1731311929674,0.07144874,81190.0,81188.0,0.123884]
[1731311929876,0.07141628,81189.0,81188.0,0.247054]
[1731311930049,0.07141628,81189.0,81188.0,0.246054]
[1731311931153,0.07141628,81189.0,81188.0,0.247054]
[1731311931628,0.03457182,81189.0,81188.0,0.247054]
[1731311932929,0.07828258,81189.0,81188.0,0.002684]
[1731311933129,0.08980726,81189.0,81188.0,0.002684]
[1731311933713,0.03457268,81189.0,81188.0,0.002684]
[1731311933918,0.07145286,81189.0,81188.0,0.002684]
[1731311934510,0.20758689,81189.0,81188.0,0.002684]
[1731311934922,0.20758689,81189.0,81188.0,0.125854]
[1731311935138,0.20758689,81189.0,81188.0,0.002684]
[1731311936496,0.3335291,81189.0,81188.0,0.002684]
[1731311937018,0.33354307,81189.0,81188.0,0.002684]
[1731311937451,0.33354307,81189.0,81188.0,0.001684]
[1731311937703,0.33354307,81189.0,81188.0,0.002684]
[1731311938144,0.33355322,81189.0,81188.0,0.002684]
[1731311938381,0.35199813,81189.0,81188.0,0.002684]
[1731311940046,0.35199813,81189.0,81188.0,0.001684]
[1731311940250,0.35199813,81189.0,81188.0,0.002684]
[1731311940423,0.47516713,81189.0,81188.0,0.002684]
[1731311941006,0.41522498,81189.0,81188.0,0.002684]
[1731311941238,0.47516554,81189.0,81188.0,0.002684]
[1731311941586,0.58580969,81189.0,81188.0,0.002684]
[1731311941789,0.47516554,81189.0,81188.0,0.002684]
[1731311942526,0.47516554,81189.0,81188.0,0.001684]
[1731311942919,0.47816554,81189.0,81188.0,0.001684]
[1731311943117,0.47516554,81189.0,81188.0,0.001684]
[1731311943333,0.5857936,81189.0,81188.0,0.00112213]
[1731311943535,0.5887936,81189.0,81188.0,0.00112213]
[1731311944573,0.5917936,81189.0,81188.0,0.00112213]
[1731311944996,0.70351722,81189.0,81188.0,0.00112213]
[1731311945204,0.70351722,81189.0,81166.0,0.26204697]
[1731311945205,0.123189,81176.0,81175.0,0.18504697]
[1731311945410,0.45674063,81176.0,81175.0,0.18504697]
[1731311945972,0.246387,81173.0,81166.0,0.18504697]
[1731311946196,0.05530078,81168.0,81166.0,0.18504697]
[1731311946481,0.14899627,81167.0,81166.0,0.18504697]
[1731311947037,0.14899627,81167.0,81165.0,0.077]
[1731311947257,0.02305406,81166.0,81165.0,0.077]
[1731311947465,0.14899627,81166.0,81165.0,0.077]
[1731311949585,0.12594221,81166.0,81165.0,0.077]
[1731311949939,0.12594221,81166.0,81165.0,0.078]
[1731311951355,0.12594221,81166.0,81165.0,0.201205]
[1731311951711,0.12594221,81166.0,81165.0,0.078]
[1731311953838,0.12594221,81166.0,81165.0,0.201205]
[1731311954219,0.12594221,81166.0,81165.0,0.078]
[1731311955222,0.12594221,81166.0,81165.0,0.079686]
[1731311955775,0.12594221,81166.0,81165.0,0.202891]
[1731311955962,0.12594221,81166.0,81165.0,0.079686]
[1731311957564,0.12594221,81166.0,81165.0,0.202891]
[1731311960308,0.01149666,81172.0,81165.0,0.202891]
[1731311960309,0.02299638,81171.0,81165.0,0.079686]
[1731311960419,0.14893859,81170.0,81169.0,0.21487288]
[1731311960622,0.1489388,81170.0,81169.0,0.21487288]
[1731311961766,0.1489388,81170.0,81169.0,0.123199]
[1731311962350,0.1489388,81170.0,81166.0,0.123202]
[1731311962790,0.12594221,81170.0,81169.0,0.001]
[1731311962997,0.14894422,81170.0,81169.0,0.001]
[1731311963198,0.14894422,81170.0,81169.0,0.124199]
[1731311963406,0.14894422,81170.0,81169.0,0.21487288]
[1731311964148,0.14894422,81170.0,81169.0,0.21587288]
[1731311964568,0.14894422,81170.0,81169.0,0.001]
[1731311964983,0.27214222,81170.0,81169.0,0.001]
[1731311965184,0.32043476,81170.0,81169.0,0.001]
[1731311965455,0.39705556,81170.0,81169.0,0.001]
[1731311965648,0.21487788,81166.0,81165.0,0.001686]
[1731311965850,0.62959973,81166.0,81165.0,0.001686]
[1731311965994,0.65951314,81166.0,81165.0,0.001686]
[1731311966195,0.56632149,81166.0,81165.0,0.001686]
[1731311966418,0.47464761,81166.0,81165.0,0.001686]
[1731311967080,0.47864761,81166.0,81165.0,0.002686]
[1731311967288,0.44183913,81166.0,81165.0,0.002686]
[1731311968257,0.45583913,81166.0,81165.0,0.003686]
[1731311969380,0.48943385,81166.0,81165.0,0.003686]
[1731311969579,0.5078424,81166.0,81165.0,0.003686]
[1731311970278,0.54464765,81166.0,81165.0,0.003686]
[1731311971146,0.63150653,81166.0,81165.0,0.003686]
[1731311971547,0.85982153,81166.0,81165.0,0.003686]
[1731311971985,0.8789963,81166.0,81165.0,0.003686]
[1731311972219,0.8789963,81166.0,81149.0,0.001684]
[1731311972220,0.123228,81150.0,81149.0,0.001684]
[1731311972422,0.32041429,81150.0,81149.0,0.001684]
[1731311972624,0.28367502,81150.0,81149.0,0.001684]
[1731311973803,0.28867502,81150.0,81149.0,0.001684]
[1731311974031,0.16544702,81150.0,81149.0,0.001684]
[1731311974181,0.15394422,81150.0,81149.0,0.001684]
[1731311974753,0.14894422,81150.0,81149.0,0.001684]
[1731311974963,0.27217222,81150.0,81149.0,0.001684]
[1731311975337,0.27617222,81150.0,81149.0,0.001684]
[1731311975745,0.38060397,81150.0,81149.0,0.001684]
[1731311975984,0.27217222,81150.0,81149.0,0.001684]
[1731311976100,0.28466753,81150.0,81149.0,0.001684]
[1731311976306,0.28366753,81150.0,81149.0,0.001684]
[1731311976779,0.28366753,81150.0,81149.0,0.002684]
[1731311978074,0.27217222,81150.0,81149.0,0.002684]
[1731311978461,0.28366753,81150.0,81149.0,0.002684]